Workbook

Sheet Sheet1
A1: Date | B1: Time | C1: Humidity | D1: Temperature | F1: Date and Time | G1: Internal Humidity Average | H1: Internal Temp Average | I1: External Humidity
A2: 2012-02-01 | B2: 08:54:39 | C2: 24.2 | D2: 19.7 | F2: 2012-02-01T09:00:00 | G2: =AVERAGE(C13:C132) -> 24.29083333 | H2: =AVERAGE(D13:D132) -> 19.36583333 | I2: 28.48888889
A3: 2012-02-01 | B3: 08:55:09 | C3: 24.2 | D3: 19.7 | F3: =F2+0.041666667 -> 2012-02-01T10:00:00 | G3: =AVERAGE(C133:C252) -> 24.37333333 | H3: =AVERAGE(D133:D252) -> 19.62916667 | I3: 21.91944444
A4: 2012-02-01 | B4: 08:55:39 | C4: 24.3 | D4: 19.7 | F4: =F3+0.041666667 -> 2012-02-01T11:00:00 | G4: =AVERAGE(C253:C372) -> 24.325 | H4: =AVERAGE(D253:D372) -> 19.7125 | I4: 19.775
A5: 2012-02-01 | B5: 08:56:09 | C5: 24.3 | D5: 19.7 | F5: 2012-02-01T12:00:00 | G5: =AVERAGE(C373:C492) -> 24.29833333 | H5: =AVERAGE(D373:D492) -> 19.72333333 | I5: 16.85555556
A6: 2012-02-01 | B6: 08:56:39 | C6: 24.3 | D6: 19.7 | F6: 2012-02-01T13:00:00 | G6: =AVERAGE(C493:C612) -> 24.19083333 | H6: =AVERAGE(D493:D612) -> 20.01083333 | I6: 14.15833333
A7: 2012-02-01 | B7: 08:57:09 | C7: 24.4 | D7: 19.7 | F7: 2012-02-01T14:00:00 | G7: =AVERAGE(C613:C732) -> 24.15666667 | H7: =AVERAGE(D613:D732) -> 20.095 | I7: 13.1625
A8: 2012-02-01 | B8: 08:57:39 | C8: 24.3 | D8: 19.7 | F8: 2012-02-01T15:00:00 | G8: =AVERAGE(C733:C852) -> 24.19166667 | H8: =AVERAGE(D733:D852) -> 20.0725 | I8: 12.66944444
A9: 2012-02-01 | B9: 08:58:09 | C9: 24.2 | D9: 19.4 | F9: 2012-02-01T16:00:00 | G9: =AVERAGE(C853:C972) -> 24.25 | H9: =AVERAGE(D853:D972) -> 19.8 | I9: 12.38055556
A10: 2012-02-01 | B10: 08:58:39 | C10: 24.3 | D10: 19.4 | F10: 2012-02-01T17:00:00 | G10: =AVERAGE(C973:C1092) -> 24.23166667 | H10: =AVERAGE(D973:D1092) -> 19.725 | I10: 13.47222222
A11: 2012-02-01 | B11: 08:59:09 | C11: 24.3 | D11: 19.4 | F11: 2012-02-01T18:00:00 | G11: =AVERAGE(C1093:C1212) -> 24.17083333 | H11: =AVERAGE(D1093:D1212) -> 19.72083333 | I11: 17.14861111
A12: 2012-02-01 | B12: 08:59:39 | C12: 24.3 | D12: 19.4 | F12: 2012-02-01T19:00:00 | G12: =AVERAGE(C1213:C1332) -> 24.17833333 | H12: =AVERAGE(D1213:D1332) -> 19.71416667 | I12: 20.18055556
A13: 2012-02-01 | B13: 09:00:09 | C13: 24.3 | D13: 19.4 | F13: 2012-02-01T20:00:00 | G13: =AVERAGE(C1333:C1452) -> 24.19 | H13: =AVERAGE(D1333:D1452) -> 19.7075 | I13: 22.2625
A14: 2012-02-01 | B14: 09:00:39 | C14: 24.3 | D14: 19.4 | F14: 2012-02-01T21:00:00 | G14: =AVERAGE(C1453:C1572) -> 24.14833333 | H14: =AVERAGE(D1453:D1572) -> 19.71 | I14: 24.22222222
A15: 2012-02-01 | B15: 09:01:09 | C15: 24.3 | D15: 19.4 | F15: 2012-02-01T22:00:00 | G15: =AVERAGE(C1573:C1692) -> 24.13333333 | H15: =AVERAGE(D1573:D1692) -> 19.70166667 | I15: 23.46111111
A16: 2012-02-01 | B16: 09:01:39 | C16: 24.3 | D16: 19.3 | F16: 2012-02-01T23:00:00 | G16: =AVERAGE(C1693:C1812) -> 24.05 | H16: =AVERAGE(D1693:D1812) -> 19.70083333 | I16: 26.49444444
A17: 2012-02-01 | B17: 09:02:09 | C17: 24.3 | D17: 19.4 | F17: 2012-02-02 | G17: =AVERAGE(C1813:C1932) -> 24.1675 | H17: =AVERAGE(D1813:D1932) -> 19.69833333 | I17: 28.17638889
A18: 2012-02-01 | B18: 09:02:39 | C18: 24.3 | D18: 19.3 | F18: 2012-02-02T01:00:00 | G18: =AVERAGE(C1933:C2052) -> 24.13166667 | H18: =AVERAGE(D1933:D2052) -> 19.61083333 | I18: 27.10138889
A19: 2012-02-01 | B19: 09:03:09 | C19: 24.3 | D19: 19.3 | F19: =F18+0.041666667 -> 2012-02-02T02:00:00 | G19: =AVERAGE(C2053:C2172) -> 24.0025 | H19: =AVERAGE(D2053:D2172) -> 19.38833333 | I19: 27.57083333
A20: 2012-02-01 | B20: 09:03:39 | C20: 24.3 | D20: 19.3 | F20: 2012-02-02T03:00:00.001 | G20: =AVERAGE(C2173:C2292) -> 24.06 | H20: =AVERAGE(D2173:D2292) -> 19.35916667 | I20: 32.20972222
A21: 2012-02-01 | B21: 09:04:09 | C21: 24.3 | D21: 19.3 | F21: 2012-02-02T04:00:00.001 | G21: =AVERAGE(C2293:C2412) -> 24.1475 | H21: =AVERAGE(D2293:D2412) -> 19.2625 | I21: 32.97638889
A22: 2012-02-01 | B22: 09:04:39 | C22: 24.3 | D22: 19.3 | F22: 2012-02-02T05:00:00.001 | G22: =AVERAGE(C2413:C2532) -> 24.19583333 | H22: =AVERAGE(D2413:D2532) -> 19.155 | I22: 37.6
A23: 2012-02-01 | B23: 09:05:09 | C23: 24.3 | D23: 19.3 | F23: 2012-02-02T06:00:00.001 | G23: =AVERAGE(C2533:C2652) -> 24.2125 | H23: =AVERAGE(D2533:D2652) -> 19.01583333 | I23: 36.60833333
A24: 2012-02-01 | B24: 09:05:39 | C24: 24.3 | D24: 19.3 | F24: 2012-02-02T07:00:00.001 | G24: =AVERAGE(C2653:C2772) -> 24.17166667 | H24: =AVERAGE(D2653:D2772) -> 19.03166667 | I24: 37.29583333
A25: 2012-02-01 | B25: 09:06:09 | C25: 25.6 | D25: 19.2 | F25: 2012-02-02T08:00:00.001 | G25: =AVERAGE(C2773:C2891) -> 24.12689076 | H25: =AVERAGE(D2773:D2891) -> 19.16806723 | I25: 32.53055556
A26: 2012-02-01 | B26: 09:06:39 | C26: 24.3 | D26: 19.2 | F26: 2012-02-02T09:00:00.001 | G26: =AVERAGE(C2892:C3011) -> 24.09583333 | H26: =AVERAGE(D2892:D3011) -> 19.365 | I26: 27.92083333
A27: 2012-02-01 | B27: 09:07:09 | C27: 24.3 | D27: 19.3 | F27: 2012-02-02T10:00:00.001 | G27: =AVERAGE(C3012:C3131) -> 24.03666667 | H27: =AVERAGE(D3012:D3131) -> 19.625 | I27: 22.04861111
A28: 2012-02-01 | B28: 09:07:39 | C28: 24.3 | D28: 19.3 | F28: 2012-02-02T11:00:00.001 | G28: =AVERAGE(C3132:C3251) -> 23.78166667 | H28: =AVERAGE(D3132:D3251) -> 19.7175 | I28: 18.39583333
A29: 2012-02-01 | B29: 09:08:09 | C29: 24.3 | D29: 19.3 | F29: 2012-02-02T12:00:00.001 | G29: =AVERAGE(C3252:C3371) -> 23.68333333 | H29: =AVERAGE(D3252:D3371) -> 19.72666667 | I29: 17.28333333
A30: 2012-02-01 | B30: 09:08:39 | C30: 24.3 | D30: 19.3 | F30: 2012-02-02T13:00:00.001 | G30: =AVERAGE(C3372:C3491) -> 23.50166667 | H30: =AVERAGE(D3372:D3491) -> 19.85583333 | I30: 15.66944444
A31: 2012-02-01 | B31: 09:09:09 | C31: 24.3 | D31: 19.2 | F31: 2012-02-02T14:00:00.001 | G31: =AVERAGE(C3492:C3611) -> 23.09916667 | H31: =AVERAGE(D3492:D3611) -> 20.09916667 | I31: 13.63194444
A32: 2012-02-01 | B32: 09:09:39 | C32: 24.3 | D32: 19.3 | F32: 2012-02-02T15:00:00.001 | G32: =AVERAGE(C3612:C3731) -> 22.71 | H32: =AVERAGE(D3612:D3731) -> 20.10083333 | I32: 11.8875
A33: 2012-02-01 | B33: 09:10:09 | C33: 24.3 | D33: 19.3 | F33: 2012-02-02T16:00:00.001 | G33: =AVERAGE(C3732:C3851) -> 22.53916667 | H33: =AVERAGE(D3732:D3851) -> 20.0975 | I33: 14.11666667
A34: 2012-02-01 | B34: 09:10:39 | C34: 24.3 | D34: 19.3 | F34: 2012-02-02T17:00:00.001 | G34: =AVERAGE(C3852:C3971) -> 22.4725 | H34: =AVERAGE(D3852:D3971) -> 19.90416667 | I34: 17.45416667
A35: 2012-02-01 | B35: 09:11:09 | C35: 24.3 | D35: 19.3 | F35: 2012-02-02T18:00:00.001 | G35: =AVERAGE(C3972:C4091) -> 22.435 | H35: =AVERAGE(D3972:D4091) -> 19.71833333 | I35: 20.16944444
A36: 2012-02-01 | B36: 09:11:39 | C36: 24.3 | D36: 19.3 | F36: 2012-02-02T19:00:00.001 | G36: =AVERAGE(C4092:C4211) -> 22.35916667 | H36: =AVERAGE(D4092:D4211) -> 19.705 | I36: 21.025
A37: 2012-02-01 | B37: 09:12:09 | C37: 24.2 | D37: 19.3 | F37: 2012-02-02T20:00:00.001 | G37: =AVERAGE(C4212:C4331) -> 22.29833333 | H37: =AVERAGE(D4212:D4331) -> 19.70833333 | I37: 22.08737864
A38: 2012-02-01 | B38: 09:12:39 | C38: 24.3 | D38: 19.3 | F38: 2012-02-02T21:00:00.001 | G38: =AVERAGE(C4332:C4451) -> 22.17916667 | H38: =AVERAGE(D4332:D4451) -> 19.70416667 | I38: 23.06527778
A39: 2012-02-01 | B39: 09:13:09 | C39: 24.3 | D39: 19.3 | F39: 2012-02-02T22:00:00.001 | G39: =AVERAGE(C4452:C4571) -> 22.0825 | H39: =AVERAGE(D4452:D4571) -> 19.705 | I39: 25.59305556
A40: 2012-02-01 | B40: 09:13:39 | C40: 24.5 | D40: 19.3 | F40: 2012-02-02T23:00:00.001 | G40: =AVERAGE(C4572:C4691) -> 22.08833333 | H40: =AVERAGE(D4572:D4691) -> 19.70083333 | I40: 26.55833333
A41: 2012-02-01 | B41: 09:14:09 | C41: 24.3 | D41: 19.3 | F41: 2012-02-03T00:00:00.001 | G41: =AVERAGE(C4692:C4811) -> 22.1525 | H41: =AVERAGE(D4692:D4811) -> 19.6975 | I41: 27.64444444
A42: 2012-02-01 | B42: 09:14:39 | C42: 24.3 | D42: 19.3 | F42: 2012-02-03T01:00:00.001 | G42: =AVERAGE(C4812:C4931) -> 22.2575 | H42: =AVERAGE(D4812:D4931) -> 19.49916667 | I42: 31.94166667
A43: 2012-02-01 | B43: 09:15:09 | C43: 24.4 | D43: 19.3 | F43: 2012-02-03T02:00:00.001 | G43: =AVERAGE(C4932:C5051) -> 22.26 | H43: =AVERAGE(D4932:D5051) -> 19.37916667 | I43: 32.24166667
A44: 2012-02-01 | B44: 09:15:39 | C44: 24.3 | D44: 19.3 | F44: 2012-02-03T03:00:00.001 | G44: =AVERAGE(C5052:C5171) -> 22.255 | H44: =AVERAGE(D5052:D5171) -> 19.26166667 | I44: 36.23194444
A45: 2012-02-01 | B45: 09:16:09 | C45: 24.3 | D45: 19.4 | F45: 2012-02-03T04:00:00.001 | G45: =AVERAGE(C5172:C5291) -> 22.28 | H45: =AVERAGE(D5172:D5291) -> 19.10083333 | I45: 37.92916667
A46: 2012-02-01 | B46: 09:16:39 | C46: 24.3 | D46: 19.4 | F46: 2012-02-03T05:00:00.001 | G46: =AVERAGE(C5292:C5411) -> 22.32083333 | H46: =AVERAGE(D5292:D5411) -> 18.9875 | I46: 42.22083333
A47: 2012-02-01 | B47: 09:17:09 | C47: 24.3 | D47: 19.3 | F47: 2012-02-03T06:00:00.001 | G47: =AVERAGE(C5412:C5531) -> 22.3625 | H47: =AVERAGE(D5412:D5531) -> 18.89583333 | I47: 44.16111111
A48: 2012-02-01 | B48: 09:17:39 | C48: 24.3 | D48: 19.4 | F48: 2012-02-03T07:00:00.001 | G48: =AVERAGE(C5532:C5651) -> 22.39333333 | H48: =AVERAGE(D5532:D5651) -> 18.8125 | I48: 43.20555556
A49: 2012-02-01 | B49: 09:18:09 | C49: 24.3 | D49: 19.4 | F49: 2012-02-03T08:00:00.001 | G49: =AVERAGE(C5652:C5771) -> 22.47 | H49: =AVERAGE(D5652:D5771) -> 18.8725 | I49: 37.32083333
A50: 2012-02-01 | B50: 09:18:39 | C50: 24.3 | D50: 19.3 | F50: 2012-02-03T09:00:00.001 | G50: =AVERAGE(C5772:C5891) -> 22.385 | H50: =AVERAGE(D5772:D5891) -> 18.99083333 | I50: 30.55138889
A51: 2012-02-01 | B51: 09:19:09 | C51: 24.3 | D51: 19.4 | F51: 2012-02-03T10:00:00.001 | G51: =AVERAGE(C5892:C6011) -> 22.37166667 | H51: =AVERAGE(D5892:D6011) -> 19.29083333 | I51: 26.62777778
A52: 2012-02-01 | B52: 09:19:39 | C52: 24.4 | D52: 19.4 | F52: 2012-02-03T11:00:00.001 | G52: =AVERAGE(C6012:C6131) -> 22.43166667 | H52: =AVERAGE(D6012:D6131) -> 19.57416667 | I52: 23.78194444
A53: 2012-02-01 | B53: 09:20:09 | C53: 24.3 | D53: 19.3 | F53: 2012-02-03T12:00:00.001 | G53: =AVERAGE(C6132:C6251) -> 22.39666667 | H53: =AVERAGE(D6132:D6251) -> 19.70083333 | I53: 22.48472222
A54: 2012-02-01 | B54: 09:20:39 | C54: 24.3 | D54: 19.3 | F54: 2012-02-03T13:00:00.001 | G54: =AVERAGE(C6252:C6371) -> 22.34166667 | H54: =AVERAGE(D6252:D6371) -> 19.705 | I54: 18.73472222
A55: 2012-02-01 | B55: 09:21:09 | C55: 24.3 | D55: 19.3 | F55: 2012-02-03T14:00:00.002 | G55: =AVERAGE(C6372:C6491) -> 22.0875 | H55: =AVERAGE(D6372:D6491) -> 19.96916667 | I55: 16.73472222
A56: 2012-02-01 | B56: 09:21:39 | C56: 24.2 | D56: 19.4 | F56: 2012-02-03T15:00:00.002 | G56: =AVERAGE(C6492:C6611) -> 21.91583333 | H56: =AVERAGE(D6492:D6611) -> 20.09666667 | I56: 16.725
A57: 2012-02-01 | B57: 09:22:09 | C57: 24.3 | D57: 19.3 | F57: 2012-02-03T16:00:00.002 | G57: =AVERAGE(C6612:C6731) -> 21.91583333 | H57: =AVERAGE(D6612:D6731) -> 20.05916667 | I57: 18.84583333
A58: 2012-02-01 | B58: 09:22:39 | C58: 24.1 | D58: 19.4 | F58: 2012-02-03T17:00:00.002 | G58: =AVERAGE(C6732:C6851) -> 21.9125 | H58: =AVERAGE(D6732:D6851) -> 19.8025 | I58: 21.3625
A59: 2012-02-01 | B59: 09:23:09 | C59: 24.3 | D59: 19.3 | F59: 2012-02-03T18:00:00.002 | G59: =AVERAGE(C6852:C6971) -> 21.8575 | H59: =AVERAGE(D6852:D6971) -> 19.71166667 | I59: 24.70416667
A60: 2012-02-01 | B60: 09:23:39 | C60: 24.3 | D60: 19.4 | F60: 2012-02-03T19:00:00.002 | G60: =AVERAGE(C6972:C7091) -> 21.99166667 | H60: =AVERAGE(D6972:D7091) -> 19.70166667 | I60: 30.95694444
A61: 2012-02-01 | B61: 09:24:09 | C61: 24.2 | D61: 19.4 | F61: 2012-02-03T20:00:00.002 | G61: =AVERAGE(C7092:C7211) -> 22.14416667 | H61: =AVERAGE(D7092:D7211) -> 19.7 | I61: 33.14861111
A62: 2012-02-01 | B62: 09:24:39 | C62: 24.2 | D62: 19.4 | F62: 2012-02-03T21:00:00.002 | G62: =AVERAGE(C7212:C7331) -> 22.31166667 | H62: =AVERAGE(D7212:D7331) -> 19.7025 | I62: 35.86805556
A63: 2012-02-01 | B63: 09:25:09 | C63: 24.3 | D63: 19.4 | F63: 2012-02-03T22:00:00.002 | G63: =AVERAGE(C7332:C7451) -> 22.455 | H63: =AVERAGE(D7332:D7451) -> 19.70166667 | I63: 39.92777778
A64: 2012-02-01 | B64: 09:25:39 | C64: 24.4 | D64: 19.3 | F64: 2012-02-03T23:00:00.002 | G64: =AVERAGE(C7452:C7571) -> 22.54583333 | H64: =AVERAGE(D7452:D7571) -> 19.7 | I64: 39.24305556
A65: 2012-02-01 | B65: 09:26:09 | C65: 24.3 | D65: 19.4 | F65: 2012-02-04T00:00:00.002 | G65: =AVERAGE(C7572:C7691) -> 22.64666667 | H65: =AVERAGE(D7572:D7691) -> 19.69916667 | I65: 39.19444444
A66: 2012-02-01 | B66: 09:26:39 | C66: 24.3 | D66: 19.4 | F66: 2012-02-04T01:00:00.002 | G66: =AVERAGE(C7692:C7811) -> 22.6875 | H66: =AVERAGE(D7692:D7811) -> 19.59 | I66: 42.83194444
A67: 2012-02-01 | B67: 09:27:09 | C67: 25.7 | D67: 19.3 | F67: 2012-02-04T02:00:00.002 | G67: =AVERAGE(C7812:C7931) -> 22.7575 | H67: =AVERAGE(D7812:D7931) -> 19.38166667 | I67: 47.96111111
A68: 2012-02-01 | B68: 09:27:39 | C68: 24.3 | D68: 19.4 | F68: =F67+0.041666667 -> 2012-02-04T03:00:00.002 | G68: =AVERAGE(C7932:C8051) -> 22.8325 | H68: =AVERAGE(D7932:D8051) -> 19.27666667 | I68: 48.01111111
A69: 2012-02-01 | B69: 09:28:09 | C69: 24.3 | D69: 19.4 | F69: 2012-02-04T04:00:00.002 | G69: =AVERAGE(C8052:C8171) -> 22.84 | H69: =AVERAGE(D8052:D8171) -> 19.13916667 | I69: 49.76388889
A70: 2012-02-01 | B70: 09:28:39 | C70: 24.3 | D70: 19.4 | F70: 2012-02-04T05:00:00.002 | G70: =AVERAGE(C8172:C8291) -> 22.85666667 | H70: =AVERAGE(D8172:D8291) -> 19.0175 | I70: 49.55
A71: 2012-02-01 | B71: 09:29:09 | C71: 24.3 | D71: 19.3 | F71: 2012-02-04T06:00:00.002 | G71: =AVERAGE(C8292:C8411) -> 22.90083333 | H71: =AVERAGE(D8292:D8411) -> 18.99 | I71: 52.95
A72: 2012-02-01 | B72: 09:29:39 | C72: 24.3 | D72: 19.4 | F72: 2012-02-04T07:00:00.002 | G72: =AVERAGE(C8412:C8531) -> 23.11583333 | H72: =AVERAGE(D8412:D8531) -> 18.905 | I72: 55.20277778
A73: 2012-02-01 | B73: 09:30:09 | C73: 24.3 | D73: 19.4 | F73: 2012-02-04T08:00:00.002 | G73: =AVERAGE(C8532:C8651) -> 23.21333333 | H73: =AVERAGE(D8532:D8651) -> 18.8475 | I73: 49.4625
A74: 2012-02-01 | B74: 09:30:39 | C74: 24.3 | D74: 19.4 | F74: 2012-02-04T09:00:00.002 | G74: =AVERAGE(C8652:C8771) -> 23.2 | H74: =AVERAGE(D8652:D8771) -> 18.89166667 | I74: 42.56666667
A75: 2012-02-01 | B75: 09:31:09 | C75: 24.3 | D75: 19.4 | F75: 2012-02-04T10:00:00.002 | G75: =AVERAGE(C8772:C8891) -> 23.28583333 | H75: =AVERAGE(D8772:D8891) -> 18.90333333 | I75: 39.79166667
A76: 2012-02-01 | B76: 09:31:39 | C76: 24.3 | D76: 19.4 | F76: 2012-02-04T11:00:00.002 | G76: =AVERAGE(C8892:C9011) -> 23.45166667 | H76: =AVERAGE(D8892:D9011) -> 18.98833333 | I76: 31.30833333
A77: 2012-02-01 | B77: 09:32:09 | C77: 23.3 | D77: 19.4 | F77: 2012-02-04T12:00:00.002 | G77: =AVERAGE(C9012:C9131) -> 23.40416667 | H77: =AVERAGE(D9012:D9131) -> 19.10916667 | I77: 25.66666667
A78: 2012-02-01 | B78: 09:32:39 | C78: 24.3 | D78: 19.4 | F78: 2012-02-04T13:00:00.002 | G78: =AVERAGE(C9132:C9251) -> 22.9325 | H78: =AVERAGE(D9132:D9251) -> 19.35416667 | I78: 20.79583333
A79: 2012-02-01 | B79: 09:33:09 | C79: 24.2 | D79: 19.4 | F79: 2012-02-04T14:00:00.002 | G79: =AVERAGE(C9252:C9371) -> 22.60666667 | H79: =AVERAGE(D9252:D9371) -> 19.4625 | I79: 16.42777778
A80: 2012-02-01 | B80: 09:33:39 | C80: 24.2 | D80: 19.4 | F80: 2012-02-04T15:00:00.002 | G80: =AVERAGE(C9372:C9491) -> 22.455 | H80: =AVERAGE(D9372:D9491) -> 19.5575 | I80: 16.82916667
A81: 2012-02-01 | B81: 09:34:09 | C81: 24.3 | D81: 19.4 | F81: 2012-02-04T16:00:00.002 | G81: =AVERAGE(C9492:C9611) -> 22.3725 | H81: =AVERAGE(D9492:D9611) -> 19.41333333 | I81: 20.51388889
A82: 2012-02-01 | B82: 09:34:39 | C82: 24.3 | D82: 19.4 | F82: 2012-02-04T17:00:00.002 | G82: =AVERAGE(C9612:C9731) -> 22.38416667 | H82: =AVERAGE(D9612:D9731) -> 19.60083333 | I82: 22.20138889
A83: 2012-02-01 | B83: 09:35:09 | C83: 24.3 | D83: 19.4 | F83: 2012-02-04T18:00:00.002 | G83: =AVERAGE(C9732:C9851) -> 22.37166667 | H83: =AVERAGE(D9732:D9851) -> 19.6925 | I83: 23.75555556
A84: 2012-02-01 | B84: 09:35:39 | C84: 24.3 | D84: 19.4 | F84: 2012-02-04T19:00:00.002 | G84: =AVERAGE(C9852:C9971) -> 22.2975 | H84: =AVERAGE(D9852:D9971) -> 19.6925 | I84: 26.37083333
A85: 2012-02-01 | B85: 09:36:09 | C85: 24.3 | D85: 19.4 | F85: 2012-02-04T20:00:00.002 | G85: =AVERAGE(C9972:C10091) -> 22.245 | H85: =AVERAGE(D9972:D10091) -> 19.70166667 | I85: 27.84583333
A86: 2012-02-01 | B86: 09:36:39 | C86: 24.3 | D86: 19.4 | F86: 2012-02-04T21:00:00.002 | G86: =AVERAGE(C10092:C10211) -> 22.235 | H86: =AVERAGE(D10092:D10211) -> 19.70583333 | I86: 29.125
A87: 2012-02-01 | B87: 09:37:09 | C87: 24.3 | D87: 19.4 | F87: 2012-02-04T22:00:00.002 | G87: =AVERAGE(C10212:C10331) -> 22.30333333 | H87: =AVERAGE(D10212:D10331) -> 19.70333333 | I87: 32.75138889
A88: 2012-02-01 | B88: 09:37:39 | C88: 24.3 | D88: 19.4 | F88: 2012-02-04T23:00:00.002 | G88: =AVERAGE(C10332:C10451) -> 22.36 | H88: =AVERAGE(D10332:D10451) -> 19.7025 | I88: 36.48194444
A89: 2012-02-01 | B89: 09:38:09 | C89: 23.5 | D89: 19.5 | F89: 2012-02-05T00:00:00.002 | G89: =AVERAGE(C10452:C10571) -> 22.46583333 | H89: =AVERAGE(D10452:D10571) -> 19.7 | I89: 41.94305556
A90: 2012-02-01 | B90: 09:38:39 | C90: 24.2 | D90: 19.4 | F90: 2012-02-05T01:00:00.003 | G90: =AVERAGE(C10572:C10691) -> 22.47083333 | H90: =AVERAGE(D10572:D10691) -> 19.70083333 | I90: 43.43611111
A91: 2012-02-01 | B91: 09:39:09 | C91: 24.3 | D91: 19.4 | F91: 2012-02-05T02:00:00.003 | G91: =AVERAGE(C10692:C10811) -> 22.51 | H91: =AVERAGE(D10692:D10811) -> 19.65083333 | I91: 46.20833333
A92: 2012-02-01 | B92: 09:39:39 | C92: 24.7 | D92: 19.4 | F92: 2012-02-05T03:00:00.003 | G92: =AVERAGE(C10812:C10931) -> 22.47583333 | H92: =AVERAGE(D10812:D10931) -> 19.38166667 | I92: 45.57777778
A93: 2012-02-01 | B93: 09:40:09 | C93: 24.8 | D93: 19.4 | F93: 2012-02-05T04:00:00.003 | G93: =AVERAGE(C10932:C11051) -> 22.53166667 | H93: =AVERAGE(D10932:D11051) -> 19.3225 | I93: 46.29861111
A94: 2012-02-01 | B94: 09:40:39 | C94: 24.2 | D94: 19.4 | F94: 2012-02-05T05:00:00.003 | G94: =AVERAGE(C11052:C11171) -> 22.63083333 | H94: =AVERAGE(D11052:D11171) -> 19.1925 | I94: 50.18055556
A95: 2012-02-01 | B95: 09:41:09 | C95: 24.3 | D95: 19.4 | F95: 2012-02-05T06:00:00.003 | G95: =AVERAGE(C11172:C11291) -> 22.72083333 | H95: =AVERAGE(D11172:D11291) -> 19.01416667 | I95: 50.94444444
A96: 2012-02-01 | B96: 09:41:39 | C96: 24.3 | D96: 19.4 | F96: 2012-02-05T07:00:00.003 | G96: =AVERAGE(C11292:C11411) -> 22.77916667 | H96: =AVERAGE(D11292:D11411) -> 18.93666667 | I96: 51.60416667
A97: 2012-02-01 | B97: 09:42:09 | C97: 24.3 | D97: 19.4 | F97: 2012-02-05T08:00:00.003 | G97: =AVERAGE(C11412:C11531) -> 22.93083333 | H97: =AVERAGE(D11412:D11531) -> 18.8825 | I97: 50.1125
A98: 2012-02-01 | B98: 09:42:39 | C98: 23.3 | D98: 19.5 | F98: 2012-02-05T09:00:00.003 | G98: =AVERAGE(C11532:C11651) -> 23.26166667 | H98: =AVERAGE(D11532:D11651) -> 18.82416667 | I98: 46.03888889
A99: 2012-02-01 | B99: 09:43:09 | C99: 24.3 | D99: 19.4 | F99: 2012-02-05T10:00:00.003 | G99: =AVERAGE(C11652:C11771) -> 23.93583333 | H99: =AVERAGE(D11652:D11771) -> 18.82416667 | I99: 39.32638889
A100: 2012-02-01 | B100: 09:43:39 | C100: 24.3 | D100: 19.4 | F100: 2012-02-05T11:00:00.003 | G100: =AVERAGE(C11772:C11891) -> 24.18083333 | H100: =AVERAGE(D11772:D11891) -> 18.96 | I100: 26.55416667
A101: 2012-02-01 | B101: 09:44:09 | C101: 24.3 | D101: 19.3 | F101: 2012-02-05T12:00:00.003 | G101: =AVERAGE(C11892:C12011) -> 23.925 | H101: =AVERAGE(D11892:D12011) -> 19.28833333 | I101: 22.23333333
A102: 2012-02-01 | B102: 09:44:39 | C102: 24.3 | D102: 19.4 | F102: 2012-02-05T13:00:00.003 | G102: =AVERAGE(C12012:C12131) -> 23.75916667 | H102: =AVERAGE(D12012:D12131) -> 19.39333333 | I102: 19.07222222
A103: 2012-02-01 | B103: 09:45:09 | C103: 24.3 | D103: 19.4 | F103: 2012-02-05T14:00:00.003 | G103: =AVERAGE(C12132:C12251) -> 23.74416667 | H103: =AVERAGE(D12132:D12251) -> 19.59166667 | I103: 16.42777778
A104: 2012-02-01 | B104: 09:45:39 | C104: 24.3 | D104: 19.4 | F104: 2012-02-05T15:00:00.003 | G104: =AVERAGE(C12252:C12371) -> 23.605 | H104: =AVERAGE(D12252:D12371) -> 19.695 | I104: 16.3125
A105: 2012-02-01 | B105: 09:46:09 | C105: 24.3 | D105: 19.4 | F105: 2012-02-05T16:00:00.003 | G105: =AVERAGE(C12372:C12491) -> 23.49416667 | H105: =AVERAGE(D12372:D12491) -> 19.69666667 | I105: 17.15416667
A106: 2012-02-01 | B106: 09:46:39 | C106: 24.3 | D106: 19.4 | F106: 2012-02-05T17:00:00.003 | G106: =AVERAGE(C12492:C12611) -> 23.31333333 | H106: =AVERAGE(D12492:D12611) -> 19.7025 | I106: 20.18611111
A107: 2012-02-01 | B107: 09:47:09 | C107: 24.2 | D107: 19.4 | F107: 2012-02-05T18:00:00.003 | G107: =AVERAGE(C12612:C12731) -> 23.02916667 | H107: =AVERAGE(D12612:D12731) -> 19.70166667 | I107: 23.0125
A108: 2012-02-01 | B108: 09:47:39 | C108: 24.3 | D108: 19.4 | F108: 2012-02-05T19:00:00.003 | G108: =AVERAGE(C12732:C12851) -> 22.93 | H108: =AVERAGE(D12732:D12851) -> 19.7075 | I108: 26.59861111
A109: 2012-02-01 | B109: 09:48:09 | C109: 23.7 | D109: 19.4 | F109: 2012-02-05T20:00:00.003 | G109: =AVERAGE(C12852:C12971) -> 22.9225 | H109: =AVERAGE(D12852:D12971) -> 19.705 | I109: 28.13888889
A110: 2012-02-01 | B110: 09:48:39 | C110: 24.3 | D110: 19.4 | F110: 2012-02-05T21:00:00.003 | G110: =AVERAGE(C12972:C13091) -> 22.91666667 | H110: =AVERAGE(D12972:D13091) -> 19.70333333 | I110: 28.90138889
A111: 2012-02-01 | B111: 09:49:09 | C111: 24.3 | D111: 19.4 | F111: 2012-02-05T22:00:00.003 | G111: =AVERAGE(C13092:C13211) -> 22.9475 | H111: =AVERAGE(D13092:D13211) -> 19.7 | I111: 31.67083333
A112: 2012-02-01 | B112: 09:49:39 | C112: 24.3 | D112: 19.4 | F112: 2012-02-05T23:00:00.003 | G112: =AVERAGE(C13212:C13331) -> 23.2525 | H112: =AVERAGE(D13212:D13331) -> 19.70416667 | I112: 36.26527778
A113: 2012-02-01 | B113: 09:50:09 | C113: 24.2 | D113: 19.4 | F113: 2012-02-06T00:00:00.003 | G113: =AVERAGE(C13332:C13451) -> 23.59 | H113: =AVERAGE(D13332:D13451) -> 19.7 | I113: 40.05694444
A114: 2012-02-01 | B114: 09:50:39 | C114: 24.3 | D114: 19.4 | F114: 2012-02-06T01:00:00.003 | G114: =AVERAGE(C13452:C13571) -> 23.79 | H114: =AVERAGE(D13452:D13571) -> 19.7025 | I114: 41.91666667
A115: 2012-02-01 | B115: 09:51:09 | C115: 24.3 | D115: 19.4 | F115: 2012-02-06T02:00:00.003 | G115: =AVERAGE(C13572:C13691) -> 23.92833333 | H115: =AVERAGE(D13572:D13691) -> 19.70833333 | I115: 44.07638889
A116: 2012-02-01 | B116: 09:51:39 | C116: 24.3 | D116: 19.4 | F116: 2012-02-06T03:00:00.003 | G116: =AVERAGE(C13692:C13811) -> 24.05416667 | H116: =AVERAGE(D13692:D13811) -> 19.70083333 | I116: 46.85277778
A117: 2012-02-01 | B117: 09:52:09 | C117: 24.3 | D117: 19.4 | F117: 2012-02-06T04:00:00.003 | G117: =AVERAGE(C13812:C13931) -> 24.18833333 | H117: =AVERAGE(D13812:D13931) -> 19.7025 | I117: 51.76388889
A118: 2012-02-01 | B118: 09:52:39 | C118: 24.3 | D118: 19.4 | F118: 2012-02-06T05:00:00.003 | G118: =AVERAGE(C13932:C14051) -> 24.23666667 | H118: =AVERAGE(D13932:D14051) -> 19.69666667 | I118: 49.64444444
A119: 2012-02-01 | B119: 09:53:09 | C119: 24.3 | D119: 19.4 | F119: 2012-02-06T06:00:00.003 | G119: =AVERAGE(C14052:C14171) -> 24.19666667 | H119: =AVERAGE(D14052:D14171) -> 19.48916667 | I119: 49.77361111
A120: 2012-02-01 | B120: 09:53:39 | C120: 24.3 | D120: 19.4 | F120: 2012-02-06T07:00:00.003 | G120: =AVERAGE(C14172:C14291) -> 24.2075 | H120: =AVERAGE(D14172:D14291) -> 19.42 | I120: 50.67638889
A121: 2012-02-01 | B121: 09:54:09 | C121: 24.3 | D121: 19.4 | F121: 2012-02-06T08:00:00.003 | G121: =AVERAGE(C14292:C14382) -> 24.20989011 | H121: =AVERAGE(D14292:D14382) -> 19.60549451 | I121: 47.22916667
A122: 2012-02-01 | B122: 09:54:39 | C122: 24.3 | D122: 19.4
A123: 2012-02-01 | B123: 09:55:09 | C123: 24.3 | D123: 19.4
A124: 2012-02-01 | B124: 09:55:39 | C124: 24.2 | D124: 19.4
A125: 2012-02-01 | B125: 09:56:09 | C125: 24.3 | D125: 19.4
A126: 2012-02-01 | B126: 09:56:39 | C126: 24.3 | D126: 19.4
A127: 2012-02-01 | B127: 09:57:09 | C127: 24.6 | D127: 19.3
A128: 2012-02-01 | B128: 09:57:39 | C128: 24.3 | D128: 19.4
A129: 2012-02-01 | B129: 09:58:09 | C129: 24.3 | D129: 19.4
A130: 2012-02-01 | B130: 09:58:39 | C130: 23.5 | D130: 19.4
A131: 2012-02-01 | B131: 09:59:09 | C131: 24.3 | D131: 19.4
A132: 2012-02-01 | B132: 09:59:39 | C132: 24.3 | D132: 19.4
A133: 2012-02-01 | B133: 10:00:09 | C133: 24.3 | D133: 19.4
A134: 2012-02-01 | B134: 10:00:39 | C134: 24.3 | D134: 19.4
A135: 2012-02-01 | B135: 10:01:09 | C135: 24.2 | D135: 19.4
A136: 2012-02-01 | B136: 10:01:39 | C136: 24.2 | D136: 19.4
A137: 2012-02-01 | B137: 10:02:09 | C137: 24.8 | D137: 19.4
A138: 2012-02-01 | B138: 10:02:39 | C138: 24.3 | D138: 19.4
A139: 2012-02-01 | B139: 10:03:09 | C139: 24.3 | D139: 19.4
A140: 2012-02-01 | B140: 10:03:39 | C140: 24.3 | D140: 19.4
A141: 2012-02-01 | B141: 10:04:09 | C141: 24.3 | D141: 19.4
A142: 2012-02-01 | B142: 10:04:39 | C142: 24.3 | D142: 19.4
A143: 2012-02-01 | B143: 10:05:09 | C143: 24.3 | D143: 19.4
A144: 2012-02-01 | B144: 10:05:39 | C144: 24.3 | D144: 19.4
A145: 2012-02-01 | B145: 10:06:09 | C145: 24.2 | D145: 19.4
A146: 2012-02-01 | B146: 10:06:39 | C146: 24.3 | D146: 19.4
A147: 2012-02-01 | B147: 10:07:09 | C147: 24.3 | D147: 19.4
A148: 2012-02-01 | B148: 10:07:39 | C148: 24.3 | D148: 19.5
A149: 2012-02-01 | B149: 10:08:09 | C149: 24.4 | D149: 19.5
A150: 2012-02-01 | B150: 10:08:39 | C150: 24.3 | D150: 19.5
A151: 2012-02-01 | B151: 10:09:09 | C151: 24.4 | D151: 19.5
A152: 2012-02-01 | B152: 10:09:39 | C152: 24.3 | D152: 19.4
A153: 2012-02-01 | B153: 10:10:09 | C153: 24.3 | D153: 19.5
A154: 2012-02-01 | B154: 10:10:39 | C154: 24.3 | D154: 19.5
A155: 2012-02-01 | B155: 10:11:09 | C155: 24.3 | D155: 19.4
A156: 2012-02-01 | B156: 10:11:39 | C156: 24.3 | D156: 19.4
A157: 2012-02-01 | B157: 10:12:09 | C157: 24.3 | D157: 19.4
A158: 2012-02-01 | B158: 10:12:39 | C158: 24.5 | D158: 19.7
A159: 2012-02-01 | B159: 10:13:09 | C159: 24.3 | D159: 19.5
A160: 2012-02-01 | B160: 10:13:39 | C160: 24.3 | D160: 19.6
A161: 2012-02-01 | B161: 10:14:09 | C161: 24.3 | D161: 19.7
A162: 2012-02-01 | B162: 10:14:39 | C162: 24.4 | D162: 19.7
A163: 2012-02-01 | B163: 10:15:09 | C163: 24.4 | D163: 19.7
A164: 2012-02-01 | B164: 10:15:39 | C164: 24.3 | D164: 19.7
A165: 2012-02-01 | B165: 10:16:09 | C165: 24.3 | D165: 19.7
A166: 2012-02-01 | B166: 10:16:39 | C166: 24.4 | D166: 19.7
A167: 2012-02-01 | B167: 10:17:09 | C167: 24.4 | D167: 19.7
A168: 2012-02-01 | B168: 10:17:39 | C168: 24.4 | D168: 19.7
A169: 2012-02-01 | B169: 10:18:09 | C169: 24.3 | D169: 19.7
A170: 2012-02-01 | B170: 10:18:39 | C170: 24.4 | D170: 19.7
A171: 2012-02-01 | B171: 10:19:09 | C171: 24.3 | D171: 19.7
A172: 2012-02-01 | B172: 10:19:39 | C172: 24.4 | D172: 19.7
A173: 2012-02-01 | B173: 10:20:09 | C173: 24.3 | D173: 19.7
A174: 2012-02-01 | B174: 10:20:39 | C174: 24.4 | D174: 19.7
A175: 2012-02-01 | B175: 10:21:09 | C175: 24.4 | D175: 19.7
A176: 2012-02-01 | B176: 10:21:39 | C176: 24.4 | D176: 19.7
A177: 2012-02-01 | B177: 10:22:09 | C177: 24.3 | D177: 19.7
A178: 2012-02-01 | B178: 10:22:39 | C178: 24.4 | D178: 19.7
A179: 2012-02-01 | B179: 10:23:09 | C179: 24.4 | D179: 19.7
A180: 2012-02-01 | B180: 10:23:39 | C180: 24.3 | D180: 19.7
A181: 2012-02-01 | B181: 10:24:09 | C181: 24.3 | D181: 19.7
A182: 2012-02-01 | B182: 10:24:39 | C182: 24.4 | D182: 19.7
A183: 2012-02-01 | B183: 10:25:09 | C183: 24.4 | D183: 19.7
A184: 2012-02-01 | B184: 10:25:39 | C184: 24.7 | D184: 19.5
A185: 2012-02-01 | B185: 10:26:09 | C185: 24.3 | D185: 19.7
A186: 2012-02-01 | B186: 10:26:39 | C186: 24.4 | D186: 19.7
A187: 2012-02-01 | B187: 10:27:09 | C187: 24.3 | D187: 19.7
A188: 2012-02-01 | B188: 10:27:39 | C188: 24.4 | D188: 19.7
A189: 2012-02-01 | B189: 10:28:09 | C189: 24.3 | D189: 19.7
A190: 2012-02-01 | B190: 10:28:39 | C190: 24.9 | D190: 19.5
A191: 2012-02-01 | B191: 10:29:09 | C191: 24.4 | D191: 19.7
A192: 2012-02-01 | B192: 10:29:39 | C192: 24.6 | D192: 19.5
A193: 2012-02-01 | B193: 10:30:09 | C193: 24.7 | D193: 19.5
A194: 2012-02-01 | B194: 10:30:39 | C194: 24.6 | D194: 19.5
A195: 2012-02-01 | B195: 10:31:09 | C195: 24.3 | D195: 19.7
A196: 2012-02-01 | B196: 10:31:39 | C196: 25.6 | D196: 19.7
A197: 2012-02-01 | B197: 10:32:09 | C197: 24.2 | D197: 19.7
A198: 2012-02-01 | B198: 10:32:39 | C198: 24.3 | D198: 19.7
A199: 2012-02-01 | B199: 10:33:09 | C199: 24.3 | D199: 19.7
A200: 2012-02-01 | B200: 10:33:39 | C200: 24.3 | D200: 19.7
... 14182 more rows
